[Event "Prague Festival op"]
[Site "Prague CZE"]
[Date "2020.02.22"]
[Round "9.4"]
[White "Roussel-Roozmon, Thomas"]
[Black "Pechac, Jergus"]
[Result "0-1"]
[ECO "D12"]
[WhiteElo "2473"]
[BlackElo "2499"]
[PlyCount "86"]
[EventDate "2020.02.14"]
[EventType "swiss"]
[EventRounds "9"]
[EventCountry "CZE"]
[TimeControl "40/5400+30:1800+30"]

1. d4 {[%emt 0:00:00]} d5 {[%emt 0:00:00]} 2. c4 {[%emt 0:00:04]} c6 {
[%emt 0:00:00]} 3. Nf3 {[%emt 0:00:19]} Nf6 {[%emt 0:00:00]} 4. e3 {
[%emt 0:00:20]} Bf5 {[%emt 0:00:00]} 5. Nc3 {[%emt 0:00:16]} e6 {[%emt 0:00:03]
} 6. Nh4 {[%emt 0:00:27]} Be4 {[%emt 0:00:05]} 7. f3 {[%emt 0:00:56]} Bg6 {
[%emt 0:00:07]} 8. Qb3 {[%emt 0:00:10]} Qc7 {[%emt 0:00:05]} 9. Bd2 {
[%emt 0:02:07]} Be7 {[%emt 0:00:48]} 10. cxd5 {[%emt 0:14:53]} Nxd5 {
[%emt 0:03:20]} 11. Nxg6 {[%emt 0:00:35]} hxg6 {[%emt 0:00:11]} 12. O-O-O {
[%emt 0:00:59]} Nd7 {[%emt 0:01:58]} 13. Nxd5 {[%emt 0:13:42]} exd5 {
[%emt 0:00:56]} 14. e4 {[%emt 0:03:28]} dxe4 {[%emt 0:04:25]} 15. fxe4 {
[%emt 0:02:57]} c5 {[%emt 0:00:05]} 16. dxc5 {[%emt 0:01:33]} Nxc5 {
[%emt 0:02:01]} 17. Bb5+ {[%emt 0:07:34]} Kf8 {[%emt 0:00:06]} 18. Qc2 {
[%emt 0:00:36]} Rc8 {[%emt 0:04:31]} 19. Kb1 {[%emt 0:00:44]} Rh4 {
[%emt 0:06:55]} 20. Be3 {[%emt 0:09:43]} Qe5 {[%emt 0:05:17]} 21. g3 {
[%emt 0:05:00]} Rxe4 {[%emt 0:03:15]} 22. Bf4 {[%emt 0:01:22]} Qf6 {
[%emt 0:00:29]} 23. Bd7 {[%emt 0:05:31]} Rd8 {[%emt 0:08:05]} 24. Rd5 {
[%emt 0:03:48]} Rxf4 {[%emt 0:01:26]} 25. gxf4 {[%emt 0:01:52]} Nxd7 {
[%emt 0:00:40]} 26. Qc7 {[%emt 0:03:09]} Qc6 {[%emt 0:01:58]} 27. Qxc6 {
[%emt 0:03:12]} bxc6 {[%emt 0:00:05]} 28. Ra5 {[%emt 0:00:03]} Ra8 {
[%emt 0:05:48]} 29. Rc1 {[%emt 0:01:18]} c5 {[%emt 0:00:34]} 30. Rb5 {
[%emt 0:01:11]} Nb6 {[%emt 0:00:59]} 31. Rd1 {[%emt 0:00:07]} Ke8 {
[%emt 0:05:32]} 32. Kc2 {[%emt 0:01:19]} Rc8 {[%emt 0:08:46]} 33. Rb3 {
[%emt 0:03:31]} f6 {[%emt 0:01:42]} 34. Rg3 {[%emt 0:04:05]} Kf7 {
[%emt 0:00:06]} 35. Rdg1 {[%emt 0:00:07]} Nd5 {[%emt 0:01:37]} 36. Rxg6 {
[%emt 0:00:23]} Bf8 {[%emt 0:00:07]} 37. R6g3 {[%emt 0:00:52]} Nxf4 {
[%emt 0:02:26]} 38. Ra3 {[%emt 0:00:33]} Rc7 {[%emt 0:00:06]} 39. h4 {
[%emt 0:00:36]} Ne2 {[%emt 0:00:59]} 40. Rg2 {[%emt 0:01:21]} Nd4+ {
[%emt 0:00:18]} 41. Kd3 {[%emt 0:31:17]} c4+ {[%emt 0:30:28]} 42. Kxd4 {
[%emt 0:00:22]} Bxa3 {[%emt 0:00:05]} 43. bxa3 {[%emt 0:00:04]} c3 {
[%emt 0:00:15]} 0-1

[Event "Carnaval"]
[Site "Quebec CAN"]
[Date "2016.02.20"]
[Round "2"]
[White "Roussel-Roozmon, Thomas"]
[Black "Song, Sam"]
[Result "1/2-1/2"]
[ECO "A11"]
[WhiteElo "2440"]
[BlackElo "2239"]
[PlyCount "45"]
[EventDate "2016.02.19"]
[EventType "swiss"]
[EventRounds "5"]
[EventCountry "CAN"]
[TimeControl "900+2"]

1. c4 Nf6 2. g3 c6 3. Bg2 d5 4. Nf3 dxc4 5. a4 Nbd7 6. Na3 e5 7. Nxc4 e4 8. Ng5
Nc5 9. d4 Ne6 10. O-O Qd5 11. Ne5 Nxg5 12. Bxg5 Bd6 13. Qc2 Bxe5 14. dxe5 Qxe5
15. Bxf6 Qxf6 16. Bxe4 h5 17. Qc3 Qxc3 18. bxc3 Be6 19. Rfd1 Rd8 20. Rd4 Rxd4
21. cxd4 Kd7 22. h4 b6 23. Kf1 1/2-1/2